[Event "Oslo Chess Festival 2017"]
[Site "Oslo"]
[Date "2017.10.02"]
[Round "4"]
[White "Risting, Eivind Olav"]
[Black "Lindbol, Aleksander"]
[Result "1-0"]
[ECO "B01"]
[WhiteElo "2335"]
[BlackElo "2006"]
[Annotator "ChessBase"]
[PlyCount "25"]
[EventType "swiss"]
[EventCountry "NOR"]
[SourceTitle "playchess.com"]
[Source "ChessBase"]
[SourceQuality "1"]
[TimeControl "5400+30"]

1. e4 {[%emt 0:00:00]} d5 {[%emt 0:07:24]} 2. exd5 {[%emt 0:00:00]} Qxd5 {[%emt 0:00:30]} 3. Nf3 {[%emt 0:00:00]} Bg4 {[%emt 0:00:30]} 4. Be2 {[%emt 0:00:00]} c6 {[%emt 0:00:30]} 5. d4 {[%emt 0:00:09]} Nf6 {[%emt 0:00:30]} 6. O-O {[%emt 0:00:30]} e6 {[%emt 0:00:30]} 7. h3 {[%emt 0:00:30]} Bxf3 {[%emt 0:00:30]} 8. Bxf3 {[%emt 0:00:30]} Qa5 {[%emt 0:00:30]} 9. c4 {[%emt 0:00:30]} Nbd7 {[%emt 0:00:30]} 10. Nc3 {[%emt 0:00:30]} Qc7 {[%emt 0:00:30]} 11. d5 {[%emt 0:00:30]} cxd5 {[%emt 0:00:30]} 12. cxd5 {[%emt 0:00:30]} O-O-O {[%emt 0:00:30]} 13. Be3 {[%emt 0:00:30]} 1-0

[Event "Oslo Chess Festival 2017"]
[Site "Oslo"]
[Date "2017.10.02"]
[Round "4"]
[White "Hobber, Anders"]
[Black "Grindbakken, Erik"]
[Result "1-0"]
[ECO "D13"]
[WhiteElo "2264"]
[BlackElo "1675"]
[Annotator "ChessBase"]
[PlyCount "45"]
[EventType "swiss"]
[EventCountry "NOR"]
[SourceTitle "playchess.com"]
[Source "ChessBase"]
[SourceQuality "1"]
[TimeControl "5400+30"]

1. d4 {[%emt 0:00:00]} c5 {[%emt 0:00:09]} 2. c3 {[%emt 0:00:49]} Nf6 {[%emt 0:02:21]} 3. Nf3 {[%emt 0:00:30]} e6 {[%emt 0:01:12]} 4. Bg5 {[%emt 0:00:13]} cxd4 {[%emt 0:00:32]} 5. cxd4 {[%emt 0:00:17]} d5 {[%emt 0:00:58]} 6. Nc3 {[%emt 0:02:25]} Be7 {[%emt 0:02:59]} 7. e3 {[%emt 0:01:08]} Nc6 {[%emt 0:04:56]} 8. Bd3 {[%emt 0:01:39]} h6 {[%emt 0:01:19]} 9. Bh4 {[%emt 0:00:39]} Bd7 {[%emt 0:03:06]} 10. O-O {[%emt 0:00:29]} O-O {[%emt 0:02:05]} 11. Rc1 {[%emt 0:00:20]} Rc8 {[%emt 0:00:28]} 12. a3 {[%emt 0:00:56]} Na5 {[%emt 0:01:33]} 13. Ne5 {[%emt 0:00:14]} a6 {[%emt 0:02:27]} 14. Bb1 {[%emt 0:05:19]} Ne8 {[%emt 0:05:41]} 15. Nxd7 {[%emt 0:00:28]} Qxd7 {[%emt 0:00:20]} 16. Bxe7 {[%emt 0:00:08]} Qxe7 {[%emt 0:00:50]} 17. Nxd5 {[%emt 0:00:07]} exd5 {[%emt 0:00:55]} 18. Rxc8 {[%emt 0:00:07]} Nc6 {[%emt 0:00:31]} 19. Qf3 {[%emt 0:01:04]} Nf6 {[%emt 0:01:30]} 20. Rxf8+ {[%emt 0:00:14]} Qxf8 {[%emt 0:00:20]} 21. Rc1 {[%emt 0:00:48]} Qd6 {[%emt 0:00:18]} 22. Qf5 {[%emt 0:01:38]} Ne7 {[%emt 0:00:28]} 23. Qe5 {[%emt 0:00:23]} 1-0

[Event "Oslo Chess Festival 2017"]
[Site "Oslo"]
[Date "2017.10.02"]
[Round "4"]
[White "Ronneland, Daniel"]
[Black "Johansen, Kai -Roger"]
[Result "0-1"]
[ECO "D12"]
[WhiteElo "2218"]
[BlackElo "1950"]
[Annotator "ChessBase"]
[PlyCount "105"]
[EventType "swiss"]
[EventCountry "NOR"]
[SourceTitle "playchess.com"]
[Source "ChessBase"]
[SourceQuality "1"]
[TimeControl "5400+30"]

1. d4 {[%emt 0:00:21]} d5 {[%emt 0:01:16]} 2. c4 {[%emt 0:01:33]} c6 {[%emt 0:01:16]} 3. Nf3 {[%emt 0:01:22]} Nf6 {[%emt 0:01:27]} 4. e3 {[%emt 0:03:40]} Bf5 {[%emt 0:00:45]} 5. Nc3 {[%emt 0:01:43]} e6 {[%emt 0:00:28]} 6. Bd3 {[%emt 0:04:01]} Bxd3 {[%emt 0:02:48]} 7. Qxd3 {[%emt 0:00:06]} Nbd7 {[%emt 0:00:51]} 8. O-O {[%emt 0:00:29]} Be7 {[%emt 0:01:07]} 9. b3 {[%emt 0:01:21]} O-O {[%emt 0:00:29]} 10. Bb2 {[%emt 0:00:13]} Re8 {[%emt 0:06:09]} 11. Rad1 {[%emt 0:01:13]} Qc7 {[%emt 0:03:20]} 12. Rd2 {[%emt 0:04:14]} Rad8 {[%emt 0:00:49]} 13. a3 {[%emt 0:04:39]} Bd6 {[%emt 0:02:16]} 14. c5 {[%emt 0:11:24]} Bf8 {[%emt 0:00:11]} 15. b4 {[%emt 0:01:14]} a6 {[%emt 0:02:09]} 16. Ne2 {[%emt 0:05:32]} Ne4 {[%emt 0:02:09]} 17. Rdd1 {[%emt 0:00:39]} f6 {[%emt 0:00:17]} 18. Ne1 {[%emt 0:07:42]} e5 {[%emt 0:10:47]} 19. f3 {[%emt 0:01:32]} Ng5 {[%emt 0:00:09]} 20. dxe5 {[%emt 0:02:36]} Nxe5 {[%emt 0:01:11]} 21. Bxe5 {[%emt 0:00:43]} fxe5 {[%emt 0:00:52]} 22. Qb3 {[%emt 0:04:10]} Kh8 {[%emt 0:08:18]} 23. Ng3 {[%emt 0:00:49]} e4 {[%emt 0:03:11]} 24. f4 {[%emt 0:02:13]} Nf7 {[%emt 0:05:30]} 25. Nc2 {[%emt 0:00:25]} Nh6 {[%emt 0:03:37]} 26. Nd4 {[%emt 0:02:12]} Rd7 {[%emt 0:04:38]} 27. f5 {[%emt 0:03:58]} Rf7 {[%emt 0:00:35]} 28. Rf4 {[%emt 0:02:37]} Be7 {[%emt 0:00:17]} 29. Rdf1 {[%emt 0:07:03]} Bf6 {[%emt 0:00:16]} 30. Qd1 {[%emt 0:03:01]} Be5 {[%emt 0:01:12]} 31. Qh5 {[%emt 0:00:50]} Ng8 {[%emt 0:11:14]} 32. Ne6 {[%emt 0:03:14]} Qe7 {[%emt 0:06:36]} 33. Ng5 {[%emt 0:01:11]} Nh6 {[%emt 0:00:12]} 34. Nxf7+ {[%emt 0:02:42]} Qxf7 {[%emt 0:00:11]} 35. Rh4 {[%emt 0:04:26]} Qxh5 {[%emt 0:02:07]} 36. Nxh5 {[%emt 0:00:41]} Ng8 {[%emt 0:00:32]} 37. Nf4 {[%emt 0:00:35]} Bxf4 {[%emt 0:01:14]} 38. Rhxf4 {[%emt 0:00:17]} Nf6 {[%emt 0:00:20]} 39. g4 {[%emt 0:02:15]} Rf8 {[%emt 0:00:09]} 40. g5 {[%emt 0:00:31]} Nd7 {[%emt 0:00:01]} 41. f6 {[%emt 0:01:30]} g6 {[%emt 0:00:09]} 42. h4 {[%emt 0:01:05]} Ne5 {[%emt 0:00:17]} 43. Kg2 {[%emt 0:03:40]} Nc4 {[%emt 0:00:20]} 44. Kf2 {[%emt 0:00:30]} Nxa3 {[%emt 0:02:24]} 45. h5 {[%emt 0:01:22]} gxh5 {[%emt 0:03:44]} 46. Rh4 {[%emt 0:00:19]} Nc2 {[%emt 0:00:14]} 47. Rb1 {[%emt 0:00:48]} Na3 {[%emt 0:00:42]} 48. Rbh1 {[%emt 0:00:31]} Kg8 {[%emt 0:01:33]} 49. Rxh5 {[%emt 0:00:24]} Kf7 {[%emt 0:00:58]} 50. Rxh7+ {[%emt 0:00:20]} Kg6 {[%emt 0:00:07]} 51. Rg7+ {[%emt 0:00:15]} Kf5 {[%emt 0:00:12]} 52. Kg3 {[%emt 0:00:48]} Nc2 {[%emt 0:00:19]} 53. Rf1+ {[%emt 0:00:17]} 0-1

[Event "Oslo Chess Festival 2017"]
[Site "Oslo"]
[Date "2017.10.02"]
[Round "4"]
[White "Nordquelle, Daniel"]
[Black "Vogt, Lothar"]
[Result "1/2-1/2"]
[ECO "B23"]
[WhiteElo "2203"]
[BlackElo "2401"]
[Annotator "ChessBase"]
[PlyCount "42"]
[EventType "swiss"]
[EventCountry "NOR"]
[SourceTitle "playchess.com"]
[Source "ChessBase"]
[SourceQuality "1"]
[TimeControl "5400+30"]

1. e4 {[%emt 0:00:06]} c5 {[%emt 0:00:01]} 2. Nc3 {[%emt 0:00:17]} Nc6 {[%emt 0:03:04]} 3. Bb5 {[%emt 0:00:13]} g6 {[%emt 0:00:44]} 4. Bxc6 {[%emt 0:00:18]} dxc6 {[%emt 0:00:49]} 5. d3 {[%emt 0:00:38]} Nf6 {[%emt 0:00:45]} 6. h3 {[%emt 0:00:46]} Bg7 {[%emt 0:00:44]} 7. Be3 {[%emt 0:00:19]} Nd7 {[%emt 0:00:53]} 8. Qd2 {[%emt 0:00:49]} e5 {[%emt 0:00:46]} 9. Bh6 {[%emt 0:01:26]} O-O {[%emt 0:01:26]} 10. Bxg7 {[%emt 0:00:17]} Kxg7 {[%emt 0:00:02]} 11. Nge2 {[%emt 0:00:20]} Nf6 {[%emt 0:02:32]} 12. O-O {[%emt 0:00:55]} Be6 {[%emt 0:00:24]} 13. Qe3 {[%emt 0:01:33]} Qd6 {[%emt 0:06:44]} 14. f4 {[%emt 0:01:35]} exf4 {[%emt 0:00:12]} 15. Rxf4 {[%emt 0:02:48]} Qe5 {[%emt 0:03:18]} 16. Raf1 {[%emt 0:03:08]} Nd7 {[%emt 0:05:44]} 17. Nd1 {[%emt 0:05:55]} Rae8 {[%emt 0:01:23]} 18. c3 {[%emt 0:01:18]} f5 {[%emt 0:02:50]} 19. Ng3 {[%emt 0:06:15]} fxe4 {[%emt 0:12:13]} 20. Rxf8 {[%emt 0:13:11]} Rxf8 {[%emt 0:02:39]} 21. Rxf8 {[%emt 0:00:12]} Kxf8 {[%emt 0:01:13]} 1/2-1/2

[Event "Oslo Chess Festival 2017"]
[Site "Oslo"]
[Date "2017.10.02"]
[Round "4"]
[White "Taksrud, Vidar"]
[Black "Dolzhykova, Kateryna"]
[Result "1-0"]
[ECO "E62"]
[WhiteElo "1983"]
[BlackElo "2270"]
[Annotator "ChessBase"]
[PlyCount "111"]
[EventType "swiss"]
[EventCountry "NOR"]
[SourceTitle "playchess.com"]
[Source "ChessBase"]
[SourceQuality "1"]
[TimeControl "5400+30"]

1. d4 {[%emt 0:00:04]} Nf6 {[%emt 0:00:08]} 2. g3 {[%emt 0:00:21]} g6 {[%emt 0:00:07]} 3. Bg2 {[%emt 0:00:09]} Bg7 {[%emt 0:00:08]} 4. c4 {[%emt 0:00:17]} d6 {[%emt 0:00:04]} 5. Nf3 {[%emt 0:00:09]} c6 {[%emt 0:00:07]} 6. Nc3 {[%emt 0:00:30]} O-O {[%emt 0:00:36]} 7. O-O {[%emt 0:00:16]} Qa5 {[%emt 0:00:17]} 8. e4 {[%emt 0:06:40]} Qh5 {[%emt 0:05:42]} 9. Ng5 {[%emt 0:11:58]} Qxd1 {[%emt 0:05:38]} 10. Rxd1 {[%emt 0:00:12]} Nbd7 {[%emt 0:02:06]} 11. h3 {[%emt 0:02:04]} e5 {[%emt 0:07:29]} 12. Nf3 {[%emt 0:00:55]} Re8 {[%emt 0:01:22]} 13. Be3 {[%emt 0:03:44]} Nf8 {[%emt 0:03:19]} 14. g4 {[%emt 0:04:54]} h6 {[%emt 0:14:49]} 15. a4 {[%emt 0:05:20]} Kh7 {[%emt 0:06:12]} 16. a5 {[%emt 0:01:05]} Ne6 {[%emt 0:03:50]} 17. d5 {[%emt 0:13:10]} cxd5 {[%emt 0:02:53]} 18. cxd5 {[%emt 0:01:26]} Nc7 {[%emt 0:04:20]} 19. Nd2 {[%emt 0:02:34]} Rd8 {[%emt 0:07:04]} 20. b4 {[%emt 0:01:15]} Bd7 {[%emt 0:00:14]} 21. Bf1 {[%emt 0:00:31]} a6 {[%emt 0:09:49]} 22. Nc4 {[%emt 0:01:10]} Nb5 {[%emt 0:00:41]} 23. Nxb5 {[%emt 0:00:25]} Bxb5 {[%emt 0:00:13]} 24. Nb6 {[%emt 0:00:17]} Bxf1 {[%emt 0:01:01]} 25. Kxf1 {[%emt 0:00:17]} Rab8 {[%emt 0:04:08]} 26. f3 {[%emt 0:00:14]} Ne8 {[%emt 0:02:08]} 27. Rdc1 {[%emt 0:00:55]} f5 {[%emt 0:00:10]} 28. gxf5 {[%emt 0:01:45]} gxf5 {[%emt 0:00:11]} 29. Ke2 {[%emt 0:00:52]} Nf6 {[%emt 0:09:55]} 30. Kd3 {[%emt 0:02:02]} fxe4+ {[%emt 0:01:49]} 31. fxe4 {[%emt 0:00:11]} Kh8 {[%emt 0:01:11]} 32. Rc7 {[%emt 0:02:08]} Nh5 {[%emt 0:00:25]} 33. Rg1 {[%emt 0:00:31]} Rf8 {[%emt 0:01:00]} 34. Ke2 {[%emt 0:06:48]} Rf6 {[%emt 0:02:05]} 35. Rd7 {[%emt 0:03:01]} Rbf8 {[%emt 0:01:30]} 36. Nc4 {[%emt 0:02:10]} Rf3 {[%emt 0:01:46]} 37. Nxd6 {[%emt 0:02:25]} Rxh3 {[%emt 0:01:21]} 38. Nf7+ {[%emt 0:00:39]} Kh7 {[%emt 0:00:38]} 39. Rxb7 {[%emt 0:02:28]} Rc8 {[%emt 0:00:46]} 40. Nxe5 {[%emt 0:04:51]} Rc3 {[%emt 0:01:44]} 41. Ng4 {[%emt 0:03:27]} Ng3+ {[%emt 0:01:45]} 42. Rxg3 {[%emt 0:00:58]} Rxg3 {[%emt 0:00:02]} 43. Nf6+ {[%emt 0:01:08]} Kg6 {[%emt 0:00:32]} 44. Rxg7+ {[%emt 0:00:12]} Kxg7 {[%emt 0:00:05]} 45. Nh5+ {[%emt 0:00:08]} Kf7 {[%emt 0:00:45]} 46. Nxg3 {[%emt 0:00:10]} Rb3 {[%emt 0:00:02]} 47. Nf5 {[%emt 0:00:57]} Rxb4 {[%emt 0:00:10]} 48. e5 {[%emt 0:00:40]} Ra4 {[%emt 0:00:19]} 49. e6+ {[%emt 0:00:51]} Kf6 {[%emt 0:00:20]} 50. Bd4+ {[%emt 0:01:06]} Kxf5 {[%emt 0:02:04]} 51. Kd3 {[%emt 0:01:08]} Kg6 {[%emt 0:01:05]} 52. d6 {[%emt 0:00:20]} Rxa5 {[%emt 0:00:11]} 53. d7 {[%emt 0:00:17]} Rd5 {[%emt 0:00:46]} 54. e7 {[%emt 0:00:22]} Rxd7 {[%emt 0:00:06]} 55. e8=Q+ {[%emt 0:00:15]} Rf7 {[%emt 0:00:01]} 56. Qg8+ {[%emt 0:01:31]} 1-0

[Event "Oslo Chess Festival 2017"]
[Site "Oslo"]
[Date "2017.10.02"]
[Round "4"]
[White "Ski, Jonathan K"]
[Black "Vestby-Ellingsen, Mads"]
[Result "1-0"]
[ECO "A29"]
[WhiteElo "1848"]
[BlackElo "2262"]
[Annotator "ChessBase"]
[PlyCount "155"]
[EventType "swiss"]
[EventCountry "NOR"]
[SourceTitle "playchess.com"]
[Source "ChessBase"]
[SourceQuality "1"]
[TimeControl "5400+30"]

1. c4 {[%emt 15:50:31]} e5 {[%emt 0:00:13]} 2. Nc3 {[%emt 0:00:09]} Nc6 {[%emt 0:00:04]} 3. Nf3 {[%emt 0:00:25]} Nf6 {[%emt 0:04:36]} 4. g3 {[%emt 0:00:21]} d5 {[%emt 0:00:08]} 5. cxd5 {[%emt 0:00:09]} Nxd5 {[%emt 0:00:05]} 6. Bg2 {[%emt 0:00:24]} Nb6 {[%emt 0:00:38]} 7. O-O {[%emt 0:00:16]} Be7 {[%emt 0:00:08]} 8. a3 {[%emt 0:00:06]} Be6 {[%emt 0:03:39]} 9. d3 {[%emt 0:00:48]} O-O {[%emt 0:06:30]} 10. Be3 {[%emt 0:08:18]} f5 {[%emt 0:12:40]} 11. Rc1 {[%emt 0:01:03]} Bf6 {[%emt 0:03:05]} 12. b4 {[%emt 0:05:18]} Nd4 {[%emt 0:00:27]} 13. Bxd4 {[%emt 0:01:19]} exd4 {[%emt 0:00:13]} 14. Nb1 {[%emt 0:00:18]} a5 {[%emt 0:05:21]} 15. b5 {[%emt 0:06:55]} a4 {[%emt 0:02:09]} 16. Qc2 {[%emt 0:02:13]} Nd5 {[%emt 0:19:45]} 17. Nfd2 {[%emt 0:05:00]} Rf7 {[%emt 0:05:12]} 18. Nc4 {[%emt 0:01:55]} Qd7 {[%emt 0:02:58]} 19. Qb2 {[%emt 0:05:09]} Rb8 {[%emt 0:04:38]} 20. f4 {[%emt 0:20:06]} Re7 {[%emt 0:05:56]} 21. Rc2 {[%emt 0:02:45]} Bf7 {[%emt 0:02:08]} 22. Bf3 {[%emt 0:00:57]} Kh8 {[%emt 0:04:35]} 23. Rfc1 {[%emt 0:02:30]} Nc3 {[%emt 0:08:22]} 24. Nxc3 {[%emt 0:00:14]} dxc3 {[%emt 0:00:05]} 25. Qb4 {[%emt 0:00:34]} Bd5 {[%emt 0:02:31]} 26. Bxd5 {[%emt 0:01:43]} Qxd5 {[%emt 0:00:06]} 27. Ne5 {[%emt 0:00:54]} Rxe5 {[%emt 0:05:04]} 28. fxe5 {[%emt 0:00:08]} Bxe5 {[%emt 0:00:22]} 29. e3 {[%emt 0:03:33]} Qxd3 {[%emt 0:00:45]} 30. Rxc3 {[%emt 0:00:04]} Bxc3 {[%emt 0:00:22]} 31. Qxc3 {[%emt 0:00:16]} Qxb5 {[%emt 0:00:38]} 32. Qxc7 {[%emt 0:00:09]} Re8 {[%emt 0:00:40]} 33. Qc3 {[%emt 0:00:31]} h6 {[%emt 0:01:04]} 34. Kf2 {[%emt 0:00:35]} Qd5 {[%emt 0:00:35]} 35. Qc2 {[%emt 0:01:35]} Rd8 {[%emt 0:01:02]} 36. h4 {[%emt 0:04:12]} Kh7 {[%emt 0:00:47]} 37. h5 {[%emt 0:00:40]} b5 {[%emt 0:00:41]} 38. Rb1 {[%emt 0:00:50]} Kh8 {[%emt 0:00:34]} 39. Qb2 {[%emt 0:00:56]} Qf7 {[%emt 0:00:35]} 40. Qe2 {[%emt 0:01:26]} Rd5 {[%emt 0:00:31]} 41. Rxb5 {[%emt 0:01:11]} Rxb5 {[%emt 0:00:27]} 42. Qxb5 {[%emt 0:00:05]} Qa2+ {[%emt 0:00:19]} 43. Kf3 {[%emt 0:00:08]} Qxa3 {[%emt 0:00:06]} 44. Qe8+ {[%emt 0:00:05]} Kh7 {[%emt 0:00:05]} 45. Qg6+ {[%emt 0:00:16]} Kg8 {[%emt 0:00:07]} 46. Qe8+ {[%emt 0:00:10]} Qf8 {[%emt 0:00:20]} 47. Qxa4 {[%emt 0:00:05]} Qf7 {[%emt 0:00:15]} 48. Qh4 {[%emt 0:00:40]} Qd5+ {[%emt 0:00:39]} 49. Kf2 {[%emt 0:00:12]} Qd2+ {[%emt 0:00:39]} 50. Kf3 {[%emt 0:01:40]} Qd5+ {[%emt 0:01:35]} 51. Kf2 {[%emt 0:00:19]} Kf7 {[%emt 0:00:41]} 52. Qb4 {[%emt 0:00:32]} Qa2+ {[%emt 0:00:44]} 53. Kf3 {[%emt 0:00:06]} Qd5+ {[%emt 0:00:28]} 54. Kf2 {[%emt 0:00:04]} Kg8 {[%emt 0:00:35]} 55. Qb8+ {[%emt 0:00:32]} Kh7 {[%emt 0:00:17]} 56. Qb4 {[%emt 0:00:06]} Qa2+ {[%emt 0:00:43]} 57. Kf3 {[%emt 0:00:07]} Qh2 {[%emt 0:00:17]} 58. Qh4 {[%emt 0:00:16]} Qg1 {[%emt 0:00:35]} 59. Ke2 {[%emt 0:00:32]} Qg2+ {[%emt 0:00:20]} 60. Kd3 {[%emt 0:00:49]} Qf3 {[%emt 0:00:13]} 61. Kd2 {[%emt 0:01:57]} Qf2+ {[%emt 0:00:28]} 62. Kd3 {[%emt 0:00:09]} Qf3 {[%emt 0:01:02]} 63. Kd2 {[%emt 0:00:05]} Qf2+ {[%emt 0:00:07]} 64. Kd3 {[%emt 0:00:04]} Qe1 {[%emt 0:00:25]} 65. Qh3 {[%emt 0:00:58]} Qd1+ {[%emt 0:00:14]} 66. Kc4 {[%emt 0:01:00]} Qc2+ {[%emt 0:00:11]} 67. Kd4 {[%emt 0:00:28]} Qe4+ {[%emt 0:00:09]} 68. Kc5 {[%emt 0:00:22]} Qxe3+ {[%emt 0:00:06]} 69. Kd5 {[%emt 0:00:04]} Qe4+ {[%emt 0:00:14]} 70. Kd6 {[%emt 0:00:08]} Kg8 {[%emt 0:00:48]} 71. Qh2 {[%emt 0:00:14]} Kf7 {[%emt 0:01:56]} 72. Qa2+ {[%emt 0:00:29]} Kf6 {[%emt 0:00:51]} 73. Qb2+ {[%emt 0:00:12]} Kg5 {[%emt 0:00:11]} 74. Qxg7+ {[%emt 0:00:03]} Kxh5 {[%emt 0:00:05]} 75. Qf7+ {[%emt 0:01:06]} Kg4 {[%emt 0:00:08]} 76. Qg6+ {[%emt 0:00:03]} Kf3 {[%emt 0:00:15]} 77. Qxh6 {[%emt 0:00:11]} Kxg3 {[%emt 0:01:50]} 78. Qg7+ {[%emt 0:00:29]} 1-0

[Event "Oslo Chess Festival 2017"]
[Site "Oslo"]
[Date "2017.10.02"]
[Round "4"]
[White "Dahl, Max"]
[Black "Louis, Thibault"]
[Result "0-1"]
[ECO "A23"]
[WhiteElo "1670"]
[BlackElo "2207"]
[Annotator "ChessBase"]
[PlyCount "68"]
[EventType "swiss"]
[EventCountry "NOR"]
[SourceTitle "playchess.com"]
[Source "ChessBase"]
[SourceQuality "1"]
[TimeControl "5400+30"]

1. c4 {[%emt 0:00:09]} e5 {[%emt 0:06:33]} 2. Nc3 {[%emt 0:00:49]} Nf6 {[%emt 0:00:25]} 3. g3 {[%emt 0:01:01]} c6 {[%emt 0:00:12]} 4. d4 {[%emt 0:04:50]} exd4 {[%emt 0:01:10]} 5. Qxd4 {[%emt 0:00:21]} d5 {[%emt 0:00:29]} 6. cxd5 {[%emt 0:04:13]} cxd5 {[%emt 0:00:18]} 7. Bg2 {[%emt 0:02:27]} Nc6 {[%emt 0:00:16]} 8. Qd1 {[%emt 0:01:38]} d4 {[%emt 0:10:28]} 9. Ne4 {[%emt 0:11:54]} Be7 {[%emt 0:00:26]} 10. Nxf6+ {[%emt 0:04:48]} Bxf6 {[%emt 0:00:09]} 11. Nf3 {[%emt 0:01:49]} O-O {[%emt 0:00:13]} 12. O-O {[%emt 0:00:51]} Re8 {[%emt 0:03:34]} 13. Re1 {[%emt 0:05:02]} Qb6 {[%emt 0:01:24]} 14. Nd2 {[%emt 0:12:31]} Bf5 {[%emt 0:00:41]} 15. a3 {[%emt 0:06:34]} Rad8 {[%emt 0:11:58]} 16. Qb3 {[%emt 0:06:10]} d3 {[%emt 0:00:32]} 17. Qxb6 {[%emt 0:03:51]} axb6 {[%emt 0:02:00]} 18. e3 {[%emt 0:02:45]} Nd4 {[%emt 0:03:18]} 19. Rb1 {[%emt 0:09:16]} Ne2+ {[%emt 0:02:11]} 20. Kf1 {[%emt 0:02:08]} Rc8 {[%emt 0:00:12]} 21. e4 {[%emt 0:05:13]} Bd7 {[%emt 0:02:44]} 22. f4 {[%emt 0:02:54]} Bd4 {[%emt 0:04:46]} 23. Nb3 {[%emt 0:02:32]} Bg1 {[%emt 0:06:04]} 24. Bf3 {[%emt 0:05:19]} Bh3+ {[%emt 0:00:10]} 25. Bg2 {[%emt 0:00:08]} Be6 {[%emt 0:03:01]} 26. Nd2 {[%emt 0:00:54]} Bxh2 {[%emt 0:00:27]} 27. f5 {[%emt 0:01:10]} Bd7 {[%emt 0:00:19]} 28. g4 {[%emt 0:01:26]} Bb5 {[%emt 0:08:34]} 29. b3 {[%emt 0:01:11]} Bf4 {[%emt 0:03:34]} 30. a4 {[%emt 0:01:04]} Ba6 {[%emt 0:03:53]} 31. b4 {[%emt 0:00:26]} Nxc1 {[%emt 0:00:07]} 32. Rexc1 {[%emt 0:00:38]} Rxc1+ {[%emt 0:00:09]} 33. Rxc1 {[%emt 0:00:18]} Bxd2 {[%emt 0:00:02]} 34. Rb1 {[%emt 0:00:45]} Bxb4 {[%emt 0:00:18]} 0-1

[Event "Oslo Chess Festival 2017"]
[Site "Oslo"]
[Date "2017.10.04"]
[Round "5"]
[White "Pigott, John C"]
[Black "Lillevold, Frode"]
[Result "1-0"]
[ECO "C55"]
[WhiteElo "2408"]
[BlackElo "2128"]
[Annotator "ChessBase"]
[PlyCount "41"]
[EventType "swiss"]
[EventCountry "NOR"]
[SourceTitle "playchess.com"]
[Source "ChessBase"]
[SourceQuality "1"]
[TimeControl "5400+30"]

1. e4 {[%emt 0:00:08]} e5 {[%emt 0:00:05]} 2. Nf3 {[%emt 0:00:11]} Nc6 {[%emt 0:00:02]} 3. Bc4 {[%emt 0:00:12]} Nf6 {[%emt 0:00:09]} 4. d3 {[%emt 0:00:06]} Be7 {[%emt 0:00:09]} 5. O-O {[%emt 0:00:13]} O-O {[%emt 0:00:02]} 6. a4 {[%emt 0:00:52]} d6 {[%emt 0:00:33]} 7. a5 {[%emt 0:02:58]} a6 {[%emt 0:01:48]} 8. h3 {[%emt 0:03:48]} Kh8 {[%emt 0:02:57]} 9. Nc3 {[%emt 0:06:01]} Ng8 {[%emt 0:02:58]} 10. Nd5 {[%emt 0:05:05]} f5 {[%emt 0:01:36]} 11. Re1 {[%emt 0:06:22]} Nf6 {[%emt 0:05:33]} 12. Ng5 {[%emt 0:04:08]} fxe4 {[%emt 0:59:17]} 13. dxe4 {[%emt 0:38:09]} Ng8 {[%emt 0:09:53]} 14. Qh5 {[%emt 0:00:21]} Bxg5 {[%emt 0:00:17]} 15. Bxg5 {[%emt 0:00:14]} Nf6 {[%emt 0:04:57]} 16. Nxf6 {[%emt 0:01:04]} gxf6 {[%emt 0:00:02]} 17. Bh6 {[%emt 0:00:20]} Re8 {[%emt 0:01:17]} 18. Qf7 {[%emt 0:11:55]} Rg8 {[%emt 0:01:03]} 19. Ra3 {[%emt 0:00:43]} Bd7 {[%emt 0:02:15]} 20. Rg3 {[%emt 0:00:15]} Rxg3 {[%emt 0:01:18]} 21. fxg3 {[%emt 0:00:05]} 1-0

[Event "Oslo Chess Festival 2017"]
[Site "Oslo"]
[Date "2017.10.04"]
[Round "5"]
[White "Vogt, Lothar"]
[Black "Zhao, Shengxin"]
[Result "1/2-1/2"]
[ECO "B92"]
[WhiteElo "2401"]
[BlackElo "2113"]
[Annotator "ChessBase"]
[PlyCount "108"]
[EventType "swiss"]
[EventCountry "NOR"]
[SourceTitle "playchess.com"]
[Source "ChessBase"]
[SourceQuality "1"]
[TimeControl "5400+30"]

1. e4 {[%emt 0:00:01]} c5 {[%emt 0:00:12]} 2. Nf3 {[%emt 0:00:02]} d6 {[%emt 0:00:08]} 3. d4 {[%emt 0:00:10]} cxd4 {[%emt 0:00:15]} 4. Nxd4 {[%emt 0:00:04]} Nf6 {[%emt 0:00:07]} 5. Nc3 {[%emt 0:00:04]} a6 {[%emt 0:00:07]} 6. Be2 {[%emt 0:00:28]} e5 {[%emt 0:00:08]} 7. Nb3 {[%emt 0:00:02]} Be7 {[%emt 0:00:31]} 8. O-O {[%emt 0:00:10]} O-O {[%emt 0:00:34]} 9. Kh1 {[%emt 0:00:05]} b6 {[%emt 0:01:48]} 10. Be3 {[%emt 0:04:54]} Nbd7 {[%emt 0:07:46]} 11. a4 {[%emt 0:06:32]} Bb7 {[%emt 0:02:30]} 12. f3 {[%emt 0:00:08]} Rc8 {[%emt 0:03:56]} 13. Bd3 {[%emt 0:07:50]} Nc5 {[%emt 0:16:30]} 14. Nxc5 {[%emt 0:00:25]} bxc5 {[%emt 0:01:03]} 15. Bc4 {[%emt 0:01:54]} Nd7 {[%emt 0:05:18]} 16. Qd3 {[%emt 0:17:08]} Nb8 {[%emt 0:10:18]} 17. Nd5 {[%emt 0:01:36]} Bxd5 {[%emt 0:03:09]} 18. Qxd5 {[%emt 0:00:25]} Qb6 {[%emt 0:08:35]} 19. Rfb1 {[%emt 0:06:21]} Qc6 {[%emt 0:08:26]} 20. Qd3 {[%emt 0:04:28]} a5 {[%emt 0:03:48]} 21. c3 {[%emt 0:09:05]} Qc7 {[%emt 0:04:11]} 22. Ra3 {[%emt 0:02:08]} Nc6 {[%emt 0:01:53]} 23. Rb3 {[%emt 0:00:52]} Rb8 {[%emt 0:00:12]} 24. Rb5 {[%emt 0:00:15]} Na7 {[%emt 0:01:05]} 25. Rxb8 {[%emt 0:00:26]} Rxb8 {[%emt 0:00:04]} 26. Qd5 {[%emt 0:00:21]} Bf6 {[%emt 0:04:18]} 27. h3 {[%emt 0:10:32]} Nc8 {[%emt 0:01:35]} 28. Bb5 {[%emt 0:02:33]} Na7 {[%emt 0:00:31]} 29. Bf1 {[%emt 0:02:46]} Qc6 {[%emt 0:03:36]} 30. Qc4 {[%emt 0:01:23]} Nc8 {[%emt 0:01:15]} 31. b3 {[%emt 0:00:47]} Nb6 {[%emt 0:02:14]} 32. Qa6 {[%emt 0:00:36]} Qa8 {[%emt 0:02:41]} 33. Qd3 {[%emt 0:02:35]} Qc6 {[%emt 0:01:47]} 34. Qd1 {[%emt 0:04:24]} d5 {[%emt 0:04:28]} 35. Bb5 {[%emt 0:01:49]} Qd6 {[%emt 0:00:04]} 36. exd5 {[%emt 0:00:51]} Qxd5 {[%emt 0:00:19]} 37. c4 {[%emt 0:04:04]} Qxd1+ 38. Rxd1 {[%emt 0:00:02]} Be7 {[%emt 0:00:04]} 39. f4 {[%emt 0:00:16]} f6 {[%emt 0:01:01]} 40. g4 {[%emt 0:01:50]} Kf7 {[%emt 0:00:27]} 41. Kg2 {[%emt 0:00:07]} g6 {[%emt 0:00:34]} 42. f5 {[%emt 0:00:15]} Rb7 {[%emt 0:00:36]} 43. Kf3 {[%emt 0:00:38]} Ra7 {[%emt 0:00:51]} 44. Ke4 {[%emt 0:00:24]} Rc7 {[%emt 0:00:15]} 45. h4 {[%emt 0:01:11]} Nc8 {[%emt 0:00:39]} 46. fxg6+ {[%emt 0:03:34]} hxg6 {[%emt 0:00:03]} 47. Rd2 {[%emt 0:02:44]} Ke6 {[%emt 0:00:57]} 48. h5 {[%emt 0:00:52]} Nd6+ {[%emt 0:00:53]} 49. Kf3 {[%emt 0:00:02]} gxh5 {[%emt 0:00:10]} 50. gxh5 {[%emt 0:00:04]} Nf5 {[%emt 0:00:20]} 51. h6 {[%emt 0:01:09]} Bf8 {[%emt 0:00:13]} 52. Rh2 {[%emt 0:02:05]} Rh7 {[%emt 0:01:20]} 53. Bd2 Bxh6 54. Be3 Bf8 {[%emt 0:01:15]} 1/2-1/2